fUSD/lending_fUSD_20240515
["ID","MTS","AMOUNT","RATE_DAILY","PERIOD"]
[327104092,1715813447135,-500.0,0.00012899,2]
[327104093,1715813447145,-1914.2553224,0.000129,2]
[327104094,1715813447153,-195.60214726,0.000129,2]
[327104095,1715813447163,-9053.87070532,0.000129,2]
[327104096,1715813447172,-118924.42678266,0.000129,5]
[327104097,1715813447186,-292.00081544,0.000129,5]
[327104098,1715813447202,-1300.50255762,0.000129,5]
[327104099,1715813447215,-301.60400004,0.000129,5]
[327104100,1715813447226,-1622.1000002,0.000129,5]
[327104101,1715813447240,-908.61920816,0.000129,5]
[327104102,1715813447252,-472.93999962,0.000129,5]
[327104103,1715813447264,-1842.5000002,0.000129,5]
[327104104,1715813447484,-2181.81,0.000129,5]
[327104105,1715813447495,-453.0,0.000129,5]
[327104106,1715813447507,-29864.3748137,0.000129,5]
[327104107,1715813447518,-151.0,0.000129,2]
[327104108,1715813447527,-151.0,0.000129,2]
[327104109,1715813447539,-151.0,0.000129,2]
[327104110,1715813447548,-273.540673,0.000129,2]
[327104111,1715813447558,-151.0,0.000129,2]
[327104112,1715813447567,-961.24056282,0.000129,2]
[327104113,1715813447576,-281.049923,0.000129,2]
[327104114,1715813447585,-151.0,0.000129,2]
[327104115,1715813447594,-151.0,0.000129,2]
[327104116,1715813447603,-151.0,0.000129,2]
[327104117,1715813447611,-151.0,0.000129,2]
[327104118,1715813447620,-151.0,0.000129,2]
[327104119,1715813447629,-151.0,0.000129,2]
[327104120,1715813447638,-169.738276,0.000129,2]
[327104121,1715813447646,-169.738276,0.000129,2]
[327104122,1715813447655,-151.0,0.000129,2]
[327104123,1715813447664,-151.0,0.000129,2]
[327104124,1715813447673,-151.0,0.000129,2]
[327104125,1715813447682,-151.0,0.000129,2]
[327104126,1715813447690,-151.0,0.000129,2]
[327104127,1715813447699,-83.19529133,0.000129,2]
[327104128,1715813447740,-155.0,0.00012875,2]
[327104129,1715813447749,-500.0,0.00012876,2]
[327104130,1715813447758,-113.51681059,0.00012876,2]
[327104131,1715813447769,-399.72988654,0.00012876,2]
[327104132,1715813447778,-916.80470867,0.000129,2]
[327104133,1715813447789,-1914.2553224,0.000129,2]
[327104134,1715813447798,-986.14581,0.000129,2]
[327104135,1715813447807,-151.0,0.000129,2]
[327104136,1715813447816,-151.0,0.000129,2]
[327104137,1715813447824,-986.14581,0.000129,2]
[327104138,1715813447834,-151.0,0.000129,2]
[327104139,1715813447843,-151.0,0.000129,2]
[327104140,1715813447851,-195.60214726,0.000129,2]
[327104141,1715813447860,-151.0,0.000129,2]
[327104142,1715813447869,-151.0,0.000129,2]
[327104143,1715813447878,-151.0,0.000129,2]
[327104144,1715813447888,-410.322977,0.000129,2]
[327104145,1715813447897,-151.0,0.000129,2]
[327104146,1715813447906,-410.322977,0.000129,2]
[327104147,1715813447915,-562.04,0.00012934,2]
[327104148,1715813447924,-151.0,0.00012935,2]
[327104149,1715813447933,-151.0,0.00012935,2]
[327104150,1715813447942,-151.0,0.00012935,2]
[327104151,1715813447951,-151.0,0.00012935,2]
[327104152,1715813447959,-151.0,0.00012935,2]
[327104153,1715813447968,-151.0,0.00012935,2]
[327104154,1715813447977,-151.0,0.00012935,2]
[327104155,1715813447986,-151.0,0.00012935,2]
[327104156,1715813447995,-151.959078,0.00012935,2]
[327104157,1715813448004,-151.0,0.00012935,2]
[327104158,1715813448013,-500.0,0.00012935,2]
[327104159,1715813448022,-500.0,0.00012935,2]
[327104160,1715813448031,-500.0,0.00012935,2]
[327104161,1715813448040,-500.0,0.00012935,2]
[327104162,1715813448049,-560.9012,0.00012935,2]
[327104163,1715813448058,-1000.0,0.00012935,2]
[327104164,1715813448067,-1000.0,0.00012935,2]
[327104165,1715813448076,-1000.0,0.00012935,2]
[327104166,1715813448085,-1000.0,0.00012935,2]
[327104167,1715813448094,-1000.0,0.00012935,2]
[327104168,1715813448102,-1000.0,0.00012935,2]
[327104169,1715813448111,-1000.0,0.00012935,2]
[327104170,1715813448121,-1000.0,0.00012935,2]
[327104171,1715813448130,-1000.0,0.00012935,2]
[327104172,1715813448139,-1000.0,0.00012935,2]
[327104173,1715813448148,-1000.0,0.00012935,2]
[327104174,1715813448157,-226.5761775,0.00012935,2]
[327104175,1715813448168,-773.4238225,0.00012935,2]
[327104176,1715813448177,-582.88287845,0.00012935,2]
[327104177,1715813448188,-417.11712155,0.00012935,2]
[327104178,1715813448197,-678.60895629,0.00012935,2]
[327104179,1715813448208,-321.39104371,0.00012935,2]
[327104180,1715813448217,-1000.0,0.00012935,2]
[327104181,1715813448226,-1000.0,0.00012935,2]
[327104182,1715813448235,-1000.0,0.00012935,2]
[327104183,1715813448248,-1000.0,0.00012935,2]
[327104184,1715813448258,-1000.0,0.00012935,2]
[327104185,1715813448268,-1000.0,0.00012935,2]
[327104186,1715813448277,-1000.0,0.00012935,2]
[327104187,1715813448289,-1000.0,0.00012935,2]
[327104188,1715813448297,-1000.0,0.00012935,2]
[327104189,1715813448306,-1000.0,0.00012935,2]
[327104190,1715813448316,-1000.0,0.00012935,2]
[327104191,1715813448327,-1000.0,0.00012935,2]
[327104192,1715813448336,-1000.0,0.00012935,2]
[327104193,1715813448346,-1000.0,0.00012935,2]
[327104194,1715813448355,-1000.0,0.00012935,2]
[327104195,1715813448364,-1000.0,0.00012935,2]
[327104196,1715813448373,-1000.0,0.00012935,2]
[327104197,1715813448383,-1000.0,0.00012935,2]
[327104198,1715813448391,-1000.0,0.00012935,2]
[327104199,1715813448400,-1000.0,0.00012935,2]
[327104200,1715813448410,-1000.0,0.00012935,2]
[327104201,1715813448419,-1000.0,0.00012935,2]
[327104202,1715813448428,-1000.0,0.00012935,2]
[327104203,1715813448438,-1000.0,0.00012935,2]
[327104204,1715813448447,-294.916,0.00012935,2]
[327104205,1715813448456,-1341.24342026,0.00012984,3]
[327104206,1715813448467,-245.52,0.00012984,2]
[327104207,1715813448477,-500.0,0.00012984,2]
[327104208,1715813448486,-1465.77,0.00012984,2]
[327104209,1715813448494,-878.95,0.00012984,2]
[327104210,1715813448502,-500.0,0.00012984,2]
[327104211,1715813448511,-500.0,0.00012984,2]
[327104212,1715813448520,-8546.57,0.00012984,2]
[327104213,1715813448529,-500.0,0.00012984,2]
[327104214,1715813448539,-500.0,0.00012984,2]
[327104215,1715813448548,-435.38,0.00012985,2]
[327104216,1715813448557,-500.0,0.00012985,2]
[327104217,1715813448566,-500.0,0.00012985,2]
[327104218,1715813448576,-500.0,0.00012985,2]
[327104219,1715813448585,-500.0,0.00012985,2]
[327104220,1715813448594,-500.0,0.00012985,2]
[327104221,1715813448603,-500.0,0.00012985,2]
[327104222,1715813448612,-500.0,0.00012985,2]
[327104223,1715813448622,-567.70481326,0.00012985,2]
[327104224,1715813448632,-150.0,0.00012985,2]
[327104225,1715813448641,-500.0,0.00012985,2]
[327104226,1715813448650,-500.0,0.00012985,2]
[327104227,1715813448659,-151.0,0.00012985,2]
[327104228,1715813448668,-151.0,0.00012985,2]
[327104229,1715813448677,-500.0,0.00012985,2]
[327104230,1715813448686,-151.0,0.00012985,2]
[327104231,1715813448695,-151.0,0.00012985,2]
[327104232,1715813448705,-151.0,0.00012985,2]
[327104233,1715813448714,-151.0,0.00012985,2]
[327104234,1715813448723,-173.326411,0.00012985,2]
[327104235,1715813448732,-500.0,0.00012985,2]
[327104236,1715813448741,-151.0,0.00012985,2]
[327104237,1715813448754,-151.0,0.00012985,2]
[327104238,1715813448764,-151.0,0.00012985,2]
[327104239,1715813448773,-151.0,0.00012985,2]
[327104240,1715813448783,-151.0,0.00012985,2]
[327104241,1715813448792,-500.0,0.00012985,2]
[327104242,1715813448801,-151.0,0.00012985,2]
[327104243,1715813448811,-500.0,0.00012985,2]
[327104244,1715813448820,-604.18,0.00012985,2]
[327104245,1715813448830,-500.0,0.00012985,2]
[327104246,1715813448839,-500.0,0.00012985,2]
[327104247,1715813448849,-500.0,0.00012985,2]
[327104248,1715813448858,-500.0,0.00012985,2]
[327104249,1715813448867,-1402.13,0.00012985,2]
[327104250,1715813448876,-253.92,0.00012985,2]
[327104251,1715813448885,-500.0,0.00012985,2]
[327104252,1715813448894,-500.0,0.00012985,2]
[327104253,1715813448903,-500.0,0.00012985,2]
[327104254,1715813448912,-500.0,0.00012985,2]
[327104255,1715813448922,-834.07,0.00012985,2]
[327104256,1715813448932,-500.0,0.00012985,2]
[327104257,1715813448941,-500.0,0.00012985,2]
[327104258,1715813448950,-510.44,0.00012985,2]
[327104259,1715813448959,-500.0,0.00012985,2]
[327104260,1715813448968,-500.0,0.00012985,2]
[327104261,1715813448977,-500.0,0.00012985,2]
[327104262,1715813448986,-500.0,0.00012985,2]
[327104263,1715813448995,-500.0,0.00012985,2]
[327104264,1715813449004,-500.0,0.00012985,2]
[327104265,1715813449013,-500.0,0.00012985,2]
[327104266,1715813449023,-350.11493771,0.00012986,2]
[327104267,1715813449033,-367.1,0.00012986,2]
[327104268,1715813449042,-500.0,0.00012986,2]
[327104269,1715813449051,-493.52,0.00012986,2]
[327104270,1715813449060,-500.0,0.00012986,2]
[327104271,1715813449069,-500.0,0.00012986,2]
[327104272,1715813449079,-733.4,0.00012986,2]
[327104273,1715813449087,-528.69065168,0.00012986,2]
[327104274,1715813449097,-242.56,0.00012986,2]
[327104275,1715813449106,-500.0,0.00012986,2]
[327104276,1715813449116,-587.97,0.00012986,2]
[327104277,1715813449124,-500.0,0.00012986,2]
[327104278,1715813449134,-500.0,0.00012986,2]
[327104279,1715813449143,-580.07,0.00012986,2]
[327104280,1715813449152,-282.01202456,0.00012986,2]
[327104281,1715813449161,-500.0,0.00012986,2]
[327104282,1715813449170,-500.0,0.00012986,2]
[327104283,1715813449180,-500.0,0.00012986,2]
[327104284,1715813449189,-636.21,0.00012986,2]
[327104285,1715813449198,-524.46239386,0.00012986,2]
[327104286,1715813449207,-525.02549785,0.00012986,2]
[327104287,1715813449216,-151.0,0.00012986,2]
[327104288,1715813449226,-151.0,0.00012986,2]
[327104289,1715813449236,-500.0,0.00012986,2]
[327104290,1715813449250,-151.0,0.00012986,2]
[327104291,1715813449259,-151.0,0.00012986,2]
[327104292,1715813449268,-151.0,0.00012986,2]
[327104293,1715813449277,-500.0,0.00012986,2]
[327104294,1715813449288,-500.0,0.00012986,2]
[327104295,1715813449297,-472.6,0.00012986,2]
[327104296,1715813449307,-427.07234741,0.00012986,2]
[327104297,1715813449316,-500.0,0.00012986,2]
[327104298,1715813449329,-500.0,0.00012986,2]
[327104299,1715813449338,-500.0,0.00012986,2]
[327104300,1715813449347,-500.0,0.00012986,2]
[327104301,1715813449356,-536.84,0.00012986,2]
[327104302,1715813449365,-500.0,0.00012986,2]
[327104303,1715813449374,-500.0,0.00012986,2]
[327104304,1715813449383,-500.0,0.00012986,2]
[327104305,1715813449392,-338.30645445,0.00012986,2]
[327104306,1715813449401,-500.0,0.00012986,2]
[327104307,1715813449410,-381.46041265,0.00012986,2]
[327104308,1715813449420,-500.0,0.00012986,2]
[327104309,1715813449429,-210.6,0.00012986,2]
[327104310,1715813449439,-247.69807383,0.00012986,2]
[327104311,1715813449448,-262.36,0.00012986,2]
[327104312,1715813449457,-500.0,0.00012986,2]
[327104313,1715813449467,-8266.0,0.00012986,2]
[327104314,1715813449476,-571.0,0.00012986,2]
[327104315,1715813449485,-4892.0,0.00012986,2]
[327104316,1715813449494,-427.5900503,0.00012989,2]
[327104317,1715813449503,-500.0,0.00012993,2]
[327104318,1715813449513,-500.0,0.00012993,2]
[327104319,1715813449522,-500.0,0.00012993,2]
[327104320,1715813449531,-1659.42,0.00012993,2]
[327104321,1715813449541,-500.0,0.00012993,2]
[327104322,1715813449550,-500.0,0.00012993,2]
[327104323,1715813449559,-437.33739407,0.00012993,2]
[327104324,1715813449568,-555.54,0.00012993,2]
[327104325,1715813449578,-500.0,0.00012993,2]
[327104326,1715813449588,-628.7186688,0.00012993,2]
[327104327,1715813449597,-385.83,0.00012993,2]
[327104328,1715813449606,-500.0,0.00012993,2]
[327104329,1715813449615,-500.0,0.00012993,2]
[327104330,1715813449624,-500.0,0.00012993,2]
[327104331,1715813449634,-500.0,0.00012993,2]
[327104332,1715813449643,-500.0,0.00012993,2]
[327104333,1715813449653,-541.21,0.00012993,2]
[327104334,1715813449662,-4122.78,0.00012993,2]
[327104335,1715813449673,-191.06,0.00012994,2]
[327104336,1715813449682,-500.0,0.00012994,2]
[327104337,1715813449691,-500.0,0.00012994,2]
[327104338,1715813449701,-500.0,0.00012994,2]
[327104339,1715813449710,-500.0,0.00012994,2]
[327104340,1715813449720,-864.09,0.00012994,2]
[327104341,1715813449729,-500.0,0.00012994,2]
[327104342,1715813449739,-500.0,0.00012994,2]
[327104343,1715813449748,-500.0,0.00012994,2]
[327104344,1715813449757,-500.0,0.00012994,2]
[327104345,1715813449768,-500.0,0.00012994,2]
[327104346,1715813449937,-500.0,0.00012994,2]
[327104347,1715813449948,-777.86,0.00012994,2]
[327104348,1715813449959,-500.0,0.00012994,2]
[327104349,1715813449968,-3008.61,0.00012994,2]
[327104350,1715813449978,-285.03,0.00012994,2]
[327104351,1715813449987,-500.0,0.00012994,2]
[327104352,1715813449997,-856.48,0.00012994,2]
[327104353,1715813450007,-500.0,0.00012994,2]
[327104354,1715813450016,-671.45,0.00012994,2]
[327104355,1715813450026,-500.0,0.00012994,2]
[327104356,1715813450036,-500.0,0.00012994,2]
[327104357,1715813450057,-2626.38,0.00012994,2]
[327104358,1715813450066,-500.0,0.00012994,2]
[327104359,1715813450076,-500.0,0.00012994,2]
[327104360,1715813450085,-1787.72,0.00012994,2]
[327104361,1715813450094,-500.0,0.00012994,2]
[327104362,1715813450104,-500.0,0.00012994,2]
[327104363,1715813450113,-207.06147927,0.00012995,2]
[327104364,1715813450122,-2403.86883121,0.00012995,2]
[327104365,1715813450131,-155.40861224,0.00012995,2]
[327104366,1715813450141,-155.0,0.00012995,2]
[327104367,1715813450151,-155.0,0.00012995,2]
[327104368,1715813450160,-170.412667,0.00012995,2]
[327104369,1715813450169,-227.49697387,0.00012995,2]
[327104370,1715813450178,-355.91068806,0.00012995,2]
[327104371,1715813450188,-1212.93169381,0.00012995,2]
[327104372,1715813450197,-298.31658624,0.00012995,2]
[327104373,1715813450206,-2359.70945069,0.00012995,2]
[327104374,1715813450216,-535.07006962,0.00012995,2]
[327104375,1715813450225,-317.50955943,0.00012995,2]
[327104376,1715813450235,-782.5278252,0.00012995,2]
[327104377,1715813450249,-157.051607,0.00012995,2]
[327104378,1715813450258,-157.051607,0.00012995,2]
[327104379,1715813450268,-157.051607,0.00012995,2]
[327104380,1715813450277,-500.0,0.00012995,2]
[327104381,1715813450289,-500.0,0.00012995,2]
[327104382,1715813450298,-500.0,0.00012995,2]
[327104383,1715813450307,-500.0,0.00012995,2]
[327104384,1715813450316,-500.0,0.00012995,2]
[327104385,1715813450328,-733.4,0.00012995,2]
[327104386,1715813450338,-500.0,0.00012995,2]
[327104387,1715813450348,-500.0,0.00012995,2]
[327104388,1715813450358,-587.97,0.00012995,2]
[327104389,1715813450368,-500.0,0.00012995,2]
[327104390,1715813450377,-493.99,0.00012995,2]
[327104391,1715813450387,-500.0,0.00012995,2]
[327104392,1715813450395,-500.0,0.00012995,2]
[327104393,1715813450405,-636.21,0.00012995,2]
[327104394,1715813450414,-520.20421922,0.00012995,2]
[327104395,1715813450423,-500.0,0.00012995,2]
[327104396,1715813450433,-500.0,0.00012995,2]
[327104397,1715813450442,-500.0,0.00012995,2]
[327104398,1715813450452,-624.45,0.00012995,2]
[327104399,1715813450461,-500.0,0.00012995,2]
[327104400,1715813450470,-500.0,0.00012995,2]
[327104401,1715813450480,-500.0,0.00012995,2]
[327104402,1715813450489,-500.0,0.00012995,2]
[327104403,1715813450499,-500.0,0.00012995,2]
[327104404,1715813450508,-500.0,0.00012995,2]
[327104405,1715813450518,-1465.77,0.00012995,2]
[327104406,1715813450528,-878.95,0.00012995,2]
[327104407,1715813450539,-500.0,0.00012995,2]
[327104408,1715813450549,-562.04,0.00012995,2]
[327104409,1715813450559,-598.41,0.00012995,2]
[327104410,1715813450569,-8546.57,0.00012995,2]
[327104411,1715813450579,-500.0,0.00012995,2]
[327104412,1715813450588,-500.0,0.00012995,2]
[327104413,1715813450598,-500.0,0.00012995,2]
[327104414,1715813450607,-500.0,0.00012995,2]
[327104415,1715813450617,-157.051607,0.00012996,2]
[327104416,1715813450627,-157.051607,0.00012996,2]
[327104417,1715813450636,-157.051607,0.00012996,2]
[327104418,1715813450646,-157.051607,0.00012996,2]
[327104419,1715813450656,-157.051607,0.00012996,2]
[327104420,1715813450666,-157.051607,0.00012996,2]
[327104421,1715813450675,-157.051607,0.00012996,2]
[327104422,1715813450685,-157.051607,0.00012996,2]
[327104423,1715813450694,-157.051607,0.00012996,2]
[327104424,1715813450704,-157.051607,0.00012996,2]
[327104425,1715813450714,-500.0,0.00012996,2]
[327104426,1715813450723,-500.0,0.00012996,2]
[327104427,1715813450732,-500.0,0.00012996,2]
[327104428,1715813450742,-500.0,0.00012996,2]
[327104429,1715813450752,-500.0,0.00012996,2]
[327104430,1715813450762,-500.0,0.00012996,2]
[327104431,1715813450772,-500.0,0.00012996,2]
[327104432,1715813450781,-169.76694502,0.00012996,2]
[327104433,1715813450798,-330.23305498,0.00012996,2]
[327104434,1715813450807,-500.0,0.00012996,2]
[327104435,1715813450816,-500.0,0.00012996,2]
[327104436,1715813450826,-128.55001333,0.00012996,2]
[327104437,1715813450837,-371.44998667,0.00012996,2]
[327104438,1715813450847,-500.0,0.00012996,2]
[327104439,1715813450856,-500.0,0.00012996,2]
[327104440,1715813450865,-500.0,0.00012996,2]
[327104441,1715813450875,-98.77580267,0.00012996,2]
[327104442,1715813450886,-401.22419733,0.00012996,2]
[327104443,1715813450895,-372.78474674,0.00012996,2]
[327104444,1715813450905,-500.0,0.00012996,2]
[327104445,1715813450914,-151.0,0.00012996,2]
[327104446,1715813450923,-733.4,0.00012996,2]
[327104447,1715813450933,-151.0,0.00012996,2]
[327104448,1715813450942,-151.0,0.00012996,2]
[327104449,1715813450951,-151.0,0.00012996,2]
[327104450,1715813450961,-151.0,0.00012996,2]
[327104451,1715813450970,-151.0,0.00012996,2]
[327104452,1715813450979,-500.0,0.00012996,2]
[327104453,1715813450989,-500.0,0.00012996,2]
[327104454,1715813450998,-151.0,0.00012996,2]
[327104455,1715813451007,-500.0,0.00012996,2]
[327104456,1715813451016,-151.0,0.00012996,2]
[327104457,1715813451026,-500.0,0.00012996,2]
[327104458,1715813451036,-500.0,0.00012996,2]
[327104459,1715813451046,-587.97,0.00012996,2]
[327104460,1715813451057,-500.0,0.00012996,2]
[327104461,1715813451066,-500.0,0.00012996,2]
[327104462,1715813451075,-283.264101,0.00012996,2]
[327104463,1715813451084,-223.07332143,0.00012996,2]
[327104464,1715813451094,-500.0,0.00012996,2]
[327104465,1715813451104,-500.0,0.00012996,2]
[327104466,1715813451113,-500.0,0.00012996,2]
[327104467,1715813451123,-151.0,0.00012996,2]
[327104468,1715813451133,-152.886412,0.00012996,2]
[327104469,1715813451142,-150.0,0.00012996,2]
[327104470,1715813451151,-150.0,0.00012996,2]
[327104471,1715813451160,-523.6,0.00012996,2]
[327104472,1715813451170,-151.0,0.00012996,2]
[327104473,1715813451179,-500.0,0.00012996,2]
[327104474,1715813451188,-151.0,0.00012996,2]
[327104475,1715813451197,-151.0,0.00012996,2]
[327104476,1715813451206,-151.0,0.00012996,2]
[327104477,1715813451216,-151.0,0.00012996,2]
[327104478,1715813451225,-636.21,0.00012996,2]
[327104479,1715813451234,-151.0,0.00012996,2]
[327104480,1715813451247,-151.0,0.00012996,2]
[327104481,1715813451256,-151.0,0.00012996,2]
[327104482,1715813451265,-151.0,0.00012996,2]
[327104483,1715813451274,-151.0,0.00012996,2]
[327104484,1715813451284,-151.0,0.00012996,2]
[327104485,1715813451294,-151.0,0.00012996,2]
[327104486,1715813451303,-319.31,0.00012996,2]
[327104487,1715813451312,-500.0,0.00012996,2]
[327104488,1715813451323,-428.11,0.00012996,2]
[327104489,1715813451337,-500.0,0.00012996,2]
[327104490,1715813451347,-465.12,0.00012996,2]
[327104491,1715813451358,-500.0,0.00012996,2]
[327104492,1715813451367,-500.0,0.00012996,2]
[327104493,1715813451376,-500.0,0.00012996,2]
[327104494,1715813451385,-500.0,0.00012996,2]
[327104495,1715813451394,-500.0,0.00012996,2]
[327104496,1715813451403,-500.0,0.00012996,2]
[327104497,1715813451413,-500.0,0.00012996,2]
[327104498,1715813451422,-500.0,0.00012996,2]
[327104499,1715813451431,-562.9,0.00012996,2]
[327104500,1715813451441,-265.33,0.00012996,2]
[327104501,1715813451450,-151.0,0.00012996,2]
[327104502,1715813451460,-151.0,0.00012996,2]
[327104503,1715813451469,-151.0,0.00012996,2]
[327104504,1715813451478,-460.71,0.00012996,2]
[327104505,1715813451488,-151.0,0.00012996,2]
[327104506,1715813451497,-151.0,0.00012996,2]
[327104507,1715813451507,-500.0,0.00012996,2]
[327104508,1715813451516,-500.0,0.00012996,2]
[327104509,1715813451525,-1214.052923,0.00012996,2]
[327104510,1715813451535,-151.0,0.00012996,2]
[327104511,1715813451544,-500.0,0.00012996,2]
[327104512,1715813451553,-294.07,0.00012996,2]
[327104513,1715813451564,-151.0,0.00012996,2]
[327104514,1715813451573,-500.0,0.00012996,2]
[327104515,1715813451583,-500.0,0.00012996,2]
[327104516,1715813451592,-500.0,0.00012996,2]
[327104517,1715813451602,-500.0,0.00012996,2]
[327104518,1715813451617,-500.0,0.00012996,2]
[327104519,1715813451632,-172.96,0.00012996,2]
[327104520,1715813451645,-500.0,0.00012996,2]
[327104521,1715813451658,-864.09,0.00012996,2]
[327104522,1715813451668,-151.0,0.00012996,2]
[327104523,1715813451682,-500.0,0.00012996,2]
[327104524,1715813451694,-500.0,0.00012996,2]
[327104525,1715813451707,-500.0,0.00012996,2]
[327104526,1715813451719,-500.0,0.00012996,2]
[327104527,1715813451733,-500.0,0.00012996,2]
[327104528,1715813451745,-500.0,0.00012996,2]
[327104529,1715813451759,-500.0,0.00012996,2]
[327104530,1715813451772,-151.0,0.00012996,2]
[327104531,1715813451787,-500.0,0.00012996,2]
[327104532,1715813451799,-1659.42,0.00012996,2]
[327104533,1715813451810,-500.0,0.00012996,2]
[327104534,1715813451823,-1659.42,0.00012996,2]
[327104535,1715813451836,-500.0,0.00012996,2]
[327104536,1715813451849,-151.0,0.00012996,2]
[327104537,1715813451861,-151.0,0.00012996,2]
[327104538,1715813451873,-500.0,0.00012996,2]
[327104539,1715813451883,-500.0,0.00012996,2]
[327104540,1715813451894,-1402.13,0.00012996,2]
[327104541,1715813451906,-1402.13,0.00012996,2]
[327104542,1715813451918,-500.0,0.00012996,2]
[327104543,1715813451930,-468.56358347,0.00012996,2]
[327104544,1715813451942,-500.0,0.00012996,2]
[327104545,1715813451953,-296.92,0.00012996,2]
[327104546,1715813451966,-219.28,0.00012996,2]
[327104547,1715813451980,-777.86,0.00012996,2]
[327104548,1715813451994,-500.0,0.00012996,2]
[327104549,1715813452006,-500.0,0.00012996,2]
[327104550,1715813452017,-500.0,0.00012996,2]
[327104551,1715813452027,-500.0,0.00012996,2]
[327104552,1715813452037,-500.0,0.00012996,2]
[327104553,1715813452049,-500.0,0.00012996,2]
[327104554,1715813452061,-500.0,0.00012996,2]
[327104555,1715813452093,-158.63,0.00012996,2]
[327104556,1715813452106,-500.0,0.00012996,2]
[327104557,1715813452116,-500.0,0.00012996,2]
[327104558,1715813452127,-3008.61,0.00012996,2]
[327104559,1715813452138,-555.54,0.00012996,2]
[327104560,1715813452151,-555.54,0.00012996,2]
[327104561,1715813452162,-500.0,0.00012996,2]
[327104562,1715813452172,-500.0,0.00012996,2]
[327104563,1715813452183,-500.0,0.00012996,2]
[327104564,1715813452193,-500.0,0.00012996,2]
[327104565,1715813452204,-856.48,0.00012996,2]
[327104566,1715813452215,-856.48,0.00012996,2]
[327104567,1715813452226,-288.919719,0.00012996,2]
[327104568,1715813452238,-500.0,0.00012996,2]
[327104569,1715813452254,-500.0,0.00012996,2]
[327104570,1715813452265,-500.0,0.00012996,2]
[327104571,1715813452276,-671.45,0.00012996,2]
[327104572,1715813452287,-671.45,0.00012996,2]
[327104573,1715813452298,-500.0,0.00012996,2]
[327104574,1715813452309,-834.07,0.00012996,2]
[327104575,1715813452322,-834.07,0.00012996,2]
[327104576,1715813452334,-500.0,0.00012996,2]
[327104577,1715813452345,-500.0,0.00012996,2]
[327104578,1715813452356,-1465.77,0.00012996,2]
[327104579,1715813452367,-470.58,0.00012996,2]
[327104580,1715813452378,-637.37,0.00012996,2]
[327104581,1715813452389,-500.0,0.00012996,2]
[327104582,1715813452399,-878.95,0.00012996,2]
[327104583,1715813452410,-151.0,0.00012996,2]
[327104584,1715813452421,-151.0,0.00012996,2]
[327104585,1715813452432,-2626.38,0.00012996,2]
[327104586,1715813452443,-500.0,0.00012996,2]
[327104587,1715813452455,-500.0,0.00012996,2]
[327104588,1715813452466,-6064.736533,0.00012996,2]
[327104589,1715813452477,-151.0,0.00012996,2]
[327104590,1715813452489,-151.0,0.00012996,2]
[327104591,1715813452500,-500.0,0.00012996,2]